[Event "Titled Tuesday Blitz April 19 Late 2022"]
[White "Kanyamarala, Tarun"]
[Black "Kosteniuk, Alexandra"]
[WhiteFideId "45004714"]
[BlackFideId "4128125"]
[WhiteElo "2522"]
[BlackElo "2694"]
[Result "1-0"]
[Round "04"]
[TimeControl "180+1"]
[Date "2022.04.19"]
[WhiteClock "0:00:23"]
[BlackClock "0:00:07"]

1. d4 {[%clk 0:02:53]}  Nf6 {[%clk 0:02:59]} 2. c4 {[%clk 0:02:53]}  e6 {[%clk 0:02:59]} 3. Nc3 {[%clk 0:02:54]}  Bb4 {[%clk 0:02:59]} 4. e3 {[%clk 0:02:54]}  b6 {[%clk 0:02:58]} 5. Bd2 {[%clk 0:02:49]}  Bb7 {[%clk 0:02:54]} 6. Nf3 {[%clk 0:02:50]}  c5 {[%clk 0:02:52]} 7. a3 {[%clk 0:02:47]}  Bxc3 {[%clk 0:02:52]} 8. Bxc3 {[%clk 0:02:48]}  Ne4 {[%clk 0:02:52]} 9. Rc1 {[%clk 0:02:46]}  Nxc3 {[%clk 0:02:47]} 10. Rxc3 {[%clk 0:02:46]}  d6 {[%clk 0:02:46]} 11. d5 {[%clk 0:02:33]}  e5 {[%clk 0:02:44]} 12. e4 {[%clk 0:02:30]}  Nd7 {[%clk 0:02:42]} 13. Bd3 {[%clk 0:02:27]}  Nf8 {[%clk 0:02:40]} 14. g3 {[%clk 0:02:21]}  Ng6 {[%clk 0:02:39]} 15. h4 {[%clk 0:02:21]}  h5 {[%clk 0:02:26]} 16. Ng5 {[%clk 0:02:18]}  Bc8 {[%clk 0:02:14]} 17. Be2 {[%clk 0:02:18]}  Ne7 {[%clk 0:01:34]} 18. Bxh5 {[%clk 0:02:14]}  g6 {[%clk 0:01:35]} 19. Bg4 {[%clk 0:02:10]}  Ng8 {[%clk 0:01:23]} 20. Bxc8 {[%clk 0:02:02]}  Qxc8 {[%clk 0:01:11]} 21. Rf3 {[%clk 0:01:57]}  Nh6 {[%clk 0:01:10]} 22. Qa4+ {[%clk 0:01:52]}  Ke7 {[%clk 0:01:09]} 23. O-O {[%clk 0:01:38]}  a6 {[%clk 0:01:05]} 24. b4 {[%clk 0:01:32]}  Qe8 {[%clk 0:01:00]} 25. Qxe8+ {[%clk 0:01:21]}  Rhxe8 {[%clk 0:00:50]} 26. bxc5 {[%clk 0:01:21]}  bxc5 {[%clk 0:00:37]} 27. Rb3 {[%clk 0:01:20]}  Ra7 {[%clk 0:00:30]} 28. Rfb1 {[%clk 0:01:20]}  Rd8 {[%clk 0:00:29]} 29. Rb7+ {[%clk 0:01:15]}  Rd7 {[%clk 0:00:30]} 30. Rxa7 {[%clk 0:01:14]}  Rxa7 {[%clk 0:00:29]} 31. f3 {[%clk 0:01:09]}  Ng8 {[%clk 0:00:25]} 32. Kf2 {[%clk 0:01:03]}  Nf6 {[%clk 0:00:25]} 33. g4 {[%clk 0:00:59]}  Nd7 {[%clk 0:00:24]} 34. Ke3 {[%clk 0:00:50]}  Kf6 {[%clk 0:00:25]} 35. Nh3 {[%clk 0:00:43]}  Ke7 {[%clk 0:00:24]} 36. Nf2 {[%clk 0:00:43]}  Kd8 {[%clk 0:00:24]} 37. Nd3 {[%clk 0:00:34]}  Kc7 {[%clk 0:00:24]} 38. f4 {[%clk 0:00:33]}  exf4+ {[%clk 0:00:23]} 39. Kxf4 {[%clk 0:00:33]}  Ra8 {[%clk 0:00:22]} 40. e5 {[%clk 0:00:28]}  dxe5+ {[%clk 0:00:15]} 41. Nxe5 {[%clk 0:00:28]}  Nxe5 {[%clk 0:00:15]} 42. Kxe5 {[%clk 0:00:28]}  Rh8 {[%clk 0:00:15]} 43. Rh1 {[%clk 0:00:26]}  Rh7 {[%clk 0:00:11]} 44. Kf6 {[%clk 0:00:26]}  Kd7 {[%clk 0:00:12]} 45. h5 {[%clk 0:00:25]}  Kd6 {[%clk 0:00:06]} 46. h6 {[%clk 0:00:23]}  Kd7 {[%clk 0:00:06]} 47. g5 {[%clk 0:00:23]}  Kd6 {[%clk 0:00:07]} 48. Re1 {[%clk 0:00:23]} 1-0


[Site "https://www.chess.com"]

[Event "Titled Tuesday Blitz April 19 Late 2022"]
[White "Kavyev, Ruslan"]
[Black "Perrine, Dalton"]
[WhiteFideId "34110981"]
[BlackFideId "2048434"]
[WhiteElo "2182"]
[BlackElo "2467"]
[Result "0-1"]
[Round "04"]
[TimeControl "180+1"]
[Date "2022.04.19"]
[WhiteClock "0:00:15"]
[BlackClock "0:00:47"]

1. d4 {[%clk 0:03:00]}  Nf6 {[%clk 0:02:48]} 2. c4 {[%clk 0:03:00]}  c5 {[%clk 0:02:48]} 3. d5 {[%clk 0:03:00]}  b5 {[%clk 0:02:48]} 4. cxb5 {[%clk 0:03:01]}  a6 {[%clk 0:02:49]} 5. bxa6 {[%clk 0:03:02]}  g6 {[%clk 0:02:49]} 6. Nc3 {[%clk 0:03:03]}  Bxa6 {[%clk 0:02:50]} 7. e4 {[%clk 0:03:04]}  Qa5 {[%clk 0:02:50]} 8. Bxa6 {[%clk 0:03:01]}  Nxa6 {[%clk 0:02:51]} 9. Bd2 {[%clk 0:02:58]}  Nb4 {[%clk 0:02:51]} 10. Bg5 {[%clk 0:02:14]}  Qa6 {[%clk 0:02:43]} 11. Bxf6 {[%clk 0:02:05]}  exf6 {[%clk 0:02:28]} 12. Nge2 {[%clk 0:01:54]}  Nd3+ {[%clk 0:02:23]} 13. Kf1 {[%clk 0:01:54]}  Nxb2 {[%clk 0:02:20]} 14. Qc2 {[%clk 0:01:54]}  Nd3 {[%clk 0:02:16]} 15. a4 {[%clk 0:01:52]}  Bg7 {[%clk 0:02:13]} 16. g3 {[%clk 0:01:43]}  f5 {[%clk 0:02:13]} 17. exf5 {[%clk 0:01:37]}  c4 {[%clk 0:02:03]} 18. Kg2 {[%clk 0:01:34]}  O-O {[%clk 0:02:03]} 19. Rab1 {[%clk 0:01:25]}  Qf6 {[%clk 0:01:49]} 20. Ne4 {[%clk 0:01:04]}  Qxf5 {[%clk 0:01:48]} 21. Qxc4 {[%clk 0:01:05]}  Ne5 {[%clk 0:01:48]} 22. Qc2 {[%clk 0:00:34]}  Rfc8 {[%clk 0:01:48]} 23. N2c3 {[%clk 0:00:33]}  Rxc3 {[%clk 0:01:42]} 24. Qxc3 {[%clk 0:00:33]}  Qxe4+ {[%clk 0:01:42]} 25. Kh3 {[%clk 0:00:30]}  Nf3 {[%clk 0:01:27]} 26. Qe3 {[%clk 0:00:27]}  Qxd5 {[%clk 0:01:11]} 27. Rb5 {[%clk 0:00:20]}  Ng5+ {[%clk 0:01:06]} 28. Kh4 {[%clk 0:00:19]}  Rxa4+ {[%clk 0:00:53]} 29. f4 {[%clk 0:00:18]}  Qxb5 {[%clk 0:00:47]} 30. Qe8+ {[%clk 0:00:16]}  Bf8 {[%clk 0:00:47]} 31. Rc1 {[%clk 0:00:16]}  Nf3+ {[%clk 0:00:46]} 32. Kh3 {[%clk 0:00:14]}  Qh5+ {[%clk 0:00:46]} 33. Kg2 {[%clk 0:00:15]}  Ra2+ {[%clk 0:00:47]} 34. Kf1 {[%clk 0:00:15]}  Qh3# {[%clk 0:00:47]} 0-1


[Site "https://www.chess.com"]

[Event "Titled Tuesday Blitz April 19 Late 2022"]
[White "Kazakouski, Valery"]
[Black "Aroesti, Roee"]
[WhiteFideId "13507443"]
[BlackFideId "2817144"]
[WhiteElo "2524"]
[BlackElo "2068"]
[Result "1/2-1/2"]
[Round "04"]
[TimeControl "180+1"]
[Date "2022.04.19"]
[WhiteClock "0:00:05"]
[BlackClock "0:00:05"]

1. d4 {[%clk 0:02:57]}  d5 {[%clk 0:02:57]} 2. c4 {[%clk 0:02:57]}  c6 {[%clk 0:02:58]} 3. Nf3 {[%clk 0:02:54]}  Nf6 {[%clk 0:02:57]} 4. Qc2 {[%clk 0:02:55]}  g6 {[%clk 0:02:55]} 5. Bf4 {[%clk 0:02:42]}  Bg7 {[%clk 0:02:55]} 6. e3 {[%clk 0:02:43]}  O-O {[%clk 0:02:54]} 7. Nc3 {[%clk 0:02:43]}  a6 {[%clk 0:02:48]} 8. h3 {[%clk 0:02:42]}  Be6 {[%clk 0:02:15]} 9. c5 {[%clk 0:02:36]}  Nbd7 {[%clk 0:02:10]} 10. Qb3 {[%clk 0:02:35]}  Ra7 {[%clk 0:02:05]} 11. Bd3 {[%clk 0:02:30]}  Ne4 {[%clk 0:02:02]} 12. Qc2 {[%clk 0:02:12]}  Ndf6 {[%clk 0:01:49]} 13. Bxe4 {[%clk 0:01:51]}  Nxe4 {[%clk 0:01:47]} 14. Nxe4 {[%clk 0:01:51]}  dxe4 {[%clk 0:01:48]} 15. Ng5 {[%clk 0:01:27]}  Qa5+ {[%clk 0:01:36]} 16. Kf1 {[%clk 0:01:01]}  Bd5 {[%clk 0:01:31]} 17. Nxe4 {[%clk 0:00:57]}  Qb5+ {[%clk 0:01:18]} 18. Kg1 {[%clk 0:00:57]}  Bxe4 {[%clk 0:01:15]} 19. Qxe4 {[%clk 0:00:58]}  Qxb2 {[%clk 0:01:15]} 20. Qb1 {[%clk 0:00:52]}  Qc3 {[%clk 0:01:10]} 21. Qc1 {[%clk 0:00:48]}  Qa5 {[%clk 0:01:00]} 22. Kh2 {[%clk 0:00:42]}  Re8 {[%clk 0:00:58]} 23. Qb2 {[%clk 0:00:43]}  e5 {[%clk 0:00:52]} 24. dxe5 {[%clk 0:00:17]}  Qxc5 {[%clk 0:00:51]} 25. Rac1 {[%clk 0:00:18]}  Bxe5 {[%clk 0:00:44]} 26. Rxc5 {[%clk 0:00:17]}  Bxb2 {[%clk 0:00:44]} 27. Rb1 {[%clk 0:00:17]}  Bf6 {[%clk 0:00:42]} 28. Rc2 {[%clk 0:00:17]}  Kg7 {[%clk 0:00:37]} 29. Bd6 {[%clk 0:00:14]}  Be5+ {[%clk 0:00:29]} 30. Bxe5+ {[%clk 0:00:15]}  Rxe5 {[%clk 0:00:30]} 31. Rd1 {[%clk 0:00:15]}  Re7 {[%clk 0:00:23]} 32. a4 {[%clk 0:00:12]}  Ra8 {[%clk 0:00:23]} 33. a5 {[%clk 0:00:12]}  Re5 {[%clk 0:00:22]} 34. Rd7 {[%clk 0:00:12]}  Rb5 {[%clk 0:00:19]} 35. Rc4 {[%clk 0:00:12]}  g5 {[%clk 0:00:13]} 36. h4 {[%clk 0:00:12]}  h6 {[%clk 0:00:12]} 37. hxg5 {[%clk 0:00:11]}  hxg5 {[%clk 0:00:13]} 38. Kg3 {[%clk 0:00:11]}  Re8 {[%clk 0:00:13]} 39. Rc7 {[%clk 0:00:03]}  Kg6 {[%clk 0:00:13]} 40. Rd4 {[%clk 0:00:03]}  Re6 {[%clk 0:00:09]} 41. Rdd7 {[%clk 0:00:03]}  Rf6 {[%clk 0:00:09]} 42. Rxb7 {[%clk 0:00:03]}  Rxa5 {[%clk 0:00:09]} 43. Rb8 {[%clk 0:00:03]}  Ra2 {[%clk 0:00:06]} 44. f3 {[%clk 0:00:03]}  Re6 {[%clk 0:00:04]} 45. e4 {[%clk 0:00:03]}  Kf6 {[%clk 0:00:03]} 46. Rg8 {[%clk 0:00:03]}  Rc2 {[%clk 0:00:02]} 47. Ra7 {[%clk 0:00:03]}  c5 {[%clk 0:00:03]} 48. Rga8 {[%clk 0:00:02]}  c4 {[%clk 0:00:03]} 49. Rxa6 {[%clk 0:00:02]}  Rxa6 {[%clk 0:00:03]} 50. Rxa6+ {[%clk 0:00:03]}  Kg7 {[%clk 0:00:04]} 51. Rc6 {[%clk 0:00:03]}  f6 {[%clk 0:00:04]} 52. Rc7+ {[%clk 0:00:03]}  Kg6 {[%clk 0:00:04]} 53. Rc6 {[%clk 0:00:04]}  Kg7 {[%clk 0:00:04]} 54. Rc5 {[%clk 0:00:04]}  c3 {[%clk 0:00:03]} 55. Kh3 {[%clk 0:00:04]}  Kg6 {[%clk 0:00:03]} 56. g3 {[%clk 0:00:04]}  Rc1 {[%clk 0:00:03]} 57. Kg4 {[%clk 0:00:05]}  Kg7 {[%clk 0:00:03]} 58. Rc6 {[%clk 0:00:05]}  c2 {[%clk 0:00:02]} 59. Kf5 {[%clk 0:00:03]}  Rf1 {[%clk 0:00:02]} 60. Rc7+ {[%clk 0:00:03]}  Kg8 {[%clk 0:00:02]} 61. Rxc2 {[%clk 0:00:04]}  Rxf3+ {[%clk 0:00:02]} 62. Kg6 {[%clk 0:00:05]}  Kf8 {[%clk 0:00:01]} 63. g4 {[%clk 0:00:03]}  Ke7 {[%clk 0:00:01]} 64. Rc6 {[%clk 0:00:03]}  Rf4 {[%clk 0:00:02]} 65. Ra6 {[%clk 0:00:03]}  Rxe4 {[%clk 0:00:02]} 66. Rxf6 {[%clk 0:00:03]}  Rxg4 {[%clk 0:00:02]} 67. Rf1 {[%clk 0:00:03]}  Rg3 {[%clk 0:00:02]} 68. Kh5 {[%clk 0:00:04]}  Rg2 {[%clk 0:00:01]} 69. Kg6 {[%clk 0:00:04]}  Re2 {[%clk 0:00:01]} 70. Kxg5 {[%clk 0:00:03]}  Re5+ {[%clk 0:00:02]} 71. Kf4 {[%clk 0:00:04]}  Re6 {[%clk 0:00:02]} 72. Kg4 {[%clk 0:00:04]}  Rf6 {[%clk 0:00:03]} 73. Ra1 {[%clk 0:00:04]}  Re6 {[%clk 0:00:04]} 74. Ra7+ {[%clk 0:00:04]}  Kd6 {[%clk 0:00:04]} 75. Ra6+ {[%clk 0:00:05]}  Kd5 {[%clk 0:00:05]} 76. Rxe6 {[%clk 0:00:05]}  Kxe6 {[%clk 0:00:05]} 1/2-1/2


[Site "https://www.chess.com"]

[Event "Titled Tuesday Blitz April 19 Late 2022"]
[White "Kozak, Adam"]
[Black "Babazada, Khazar"]
[WhiteFideId "753246"]
[BlackFideId "13413554"]
[WhiteElo "2459"]
[BlackElo "2406"]
[Result "1-0"]
[Round "04"]
[TimeControl "180+1"]
[Date "2022.04.19"]
[WhiteClock "0:00:43"]
[BlackClock "0:00:30"]

1. Nf3 {[%clk 0:02:59]}  Nf6 {[%clk 0:03:00]} 2. c4 {[%clk 0:02:59]}  g6 {[%clk 0:03:00]} 3. Nc3 {[%clk 0:02:59]}  Bg7 {[%clk 0:03:01]} 4. e4 {[%clk 0:02:59]}  d6 {[%clk 0:03:00]} 5. d4 {[%clk 0:02:59]}  O-O {[%clk 0:02:59]} 6. Be2 {[%clk 0:03:00]}  Na6 {[%clk 0:03:00]} 7. O-O {[%clk 0:03:00]}  e5 {[%clk 0:02:59]} 8. Be3 {[%clk 0:03:00]}  Qe7 {[%clk 0:02:48]} 9. dxe5 {[%clk 0:02:56]}  dxe5 {[%clk 0:02:48]} 10. Nd5 {[%clk 0:02:55]}  Nxd5 {[%clk 0:02:48]} 11. cxd5 {[%clk 0:02:55]}  f5 {[%clk 0:02:37]} 12. Rc1 {[%clk 0:02:49]}  f4 {[%clk 0:01:58]} 13. Bd2 {[%clk 0:02:47]}  Nc5 {[%clk 0:01:56]} 14. Qc2 {[%clk 0:02:43]}  b6 {[%clk 0:01:47]} 15. b4 {[%clk 0:02:38]}  Nd7 {[%clk 0:01:47]} 16. Qxc7 {[%clk 0:02:35]}  Kh8 {[%clk 0:01:41]} 17. d6 {[%clk 0:02:32]}  Qf6 {[%clk 0:01:38]} 18. Bb5 {[%clk 0:02:28]}  Rf7 {[%clk 0:01:30]} 19. Bc3 {[%clk 0:02:22]}  Nf8 {[%clk 0:01:26]} 20. Bxe5 {[%clk 0:02:18]}  Qe6 {[%clk 0:01:20]} 21. Bxg7+ {[%clk 0:02:16]}  Rxg7 {[%clk 0:01:21]} 22. Bc6 {[%clk 0:01:47]}  Rxc7 {[%clk 0:01:09]} 23. dxc7 {[%clk 0:01:48]}  Qe7 {[%clk 0:01:07]} 24. Bxa8 {[%clk 0:01:47]}  Ne6 {[%clk 0:01:07]} 25. Rc2 {[%clk 0:01:36]}  g5 {[%clk 0:01:08]} 26. Bd5 {[%clk 0:01:32]}  g4 {[%clk 0:01:04]} 27. Bxe6 {[%clk 0:01:22]}  Qxe6 {[%clk 0:01:05]} 28. Nd4 {[%clk 0:01:08]}  Qxe4 {[%clk 0:01:03]} 29. Rd1 {[%clk 0:01:01]}  f3 {[%clk 0:00:50]} 30. Rcd2 {[%clk 0:00:54]}  Kg7 {[%clk 0:00:43]} 31. Nb5 {[%clk 0:00:52]}  Ba6 {[%clk 0:00:39]} 32. Nd6 {[%clk 0:00:49]}  Qxb4 {[%clk 0:00:34]} 33. c8=Q {[%clk 0:00:46]}  Bxc8 {[%clk 0:00:34]} 34. Nxc8 {[%clk 0:00:47]}  fxg2 {[%clk 0:00:35]} 35. Nd6 {[%clk 0:00:45]}  h5 {[%clk 0:00:31]} 36. Nf5+ {[%clk 0:00:43]}  Kf6 {[%clk 0:00:31]} 37. Ne3 {[%clk 0:00:43]}  Qe4 {[%clk 0:00:30]} 38. Rd6+ {[%clk 0:00:43]}  Kg5 {[%clk 0:00:30]} 39. R1d5+ {[%clk 0:00:42]}  Kh4 {[%clk 0:00:30]} 40. Nxg2+ {[%clk 0:00:43]} 1-0


[Site "https://www.chess.com"]

[Event "Titled Tuesday Blitz April 19 Late 2022"]
[White "Kujawski, Adam"]
[Black "Lehtosaari, Mauri"]
[WhiteFideId "1100920"]
[BlackFideId "501999"]
[WhiteElo "2053"]
[BlackElo "2459"]
[Result "0-1"]
[Round "04"]
[TimeControl "180+1"]
[Date "2022.04.19"]
[WhiteClock "0:00:23"]
[BlackClock "0:00:25"]

1. e4 {[%clk 0:03:00]}  c5 {[%clk 0:02:59]} 2. Nf3 {[%clk 0:03:00]}  e6 {[%clk 0:02:58]} 3. d4 {[%clk 0:03:00]}  cxd4 {[%clk 0:02:59]} 4. Nxd4 {[%clk 0:03:01]}  Qb6 {[%clk 0:02:59]} 5. Nc3 {[%clk 0:02:58]}  Bc5 {[%clk 0:02:59]} 6. Be3 {[%clk 0:02:56]}  Nc6 {[%clk 0:02:58]} 7. Na4 {[%clk 0:02:44]}  Qa5+ {[%clk 0:02:57]} 8. c3 {[%clk 0:02:44]}  Bxd4 {[%clk 0:02:56]} 9. Bxd4 {[%clk 0:02:44]}  Nxd4 {[%clk 0:02:56]} 10. Qxd4 {[%clk 0:02:44]}  e5 {[%clk 0:02:57]} 11. Qc4 {[%clk 0:02:12]}  Nf6 {[%clk 0:02:34]} 12. f3 {[%clk 0:01:48]}  O-O {[%clk 0:02:23]} 13. Qb5 {[%clk 0:01:38]}  Qc7 {[%clk 0:01:56]} 14. Qc5 {[%clk 0:01:35]}  Qxc5 {[%clk 0:01:39]} 15. Nxc5 {[%clk 0:01:34]}  d5 {[%clk 0:01:36]} 16. exd5 {[%clk 0:01:29]}  Nxd5 {[%clk 0:01:36]} 17. O-O-O {[%clk 0:01:24]}  Ne3 {[%clk 0:01:17]} 18. Re1 {[%clk 0:01:08]}  Nxf1 {[%clk 0:01:15]} 19. Rhxf1 {[%clk 0:01:09]}  b6 {[%clk 0:01:01]} 20. Nd3 {[%clk 0:01:07]}  f6 {[%clk 0:00:58]} 21. f4 {[%clk 0:01:06]}  Ba6 {[%clk 0:00:57]} 22. Rf3 {[%clk 0:01:06]}  e4 {[%clk 0:00:45]} 23. Rxe4 {[%clk 0:01:04]}  Bb7 {[%clk 0:00:45]} 24. Rfe3 {[%clk 0:01:02]}  Bxe4 {[%clk 0:00:45]} 25. Rxe4 {[%clk 0:01:03]}  Rfe8 {[%clk 0:00:45]} 26. Ra4 {[%clk 0:00:44]}  Re2 {[%clk 0:00:41]} 27. g4 {[%clk 0:00:40]}  Rxh2 {[%clk 0:00:39]} 28. g5 {[%clk 0:00:32]}  Rd8 {[%clk 0:00:34]} 29. Nb4 {[%clk 0:00:25]}  fxg5 {[%clk 0:00:27]} 30. fxg5 {[%clk 0:00:23]}  Rf8 {[%clk 0:00:25]} 0-1


[Site "https://www.chess.com"]

[Event "Titled Tuesday Blitz April 19 Late 2022"]
[White "Ladan, Nicholas"]
[Black "Sztokbant, Bernardo Vainzoff"]
[WhiteFideId "30918855"]
[BlackFideId "2115956"]
[WhiteElo "2167"]
[BlackElo "2225"]
[Result "1/2-1/2"]
[Round "04"]
[TimeControl "180+1"]
[Date "2022.04.19"]
[WhiteClock "0:00:07"]
[BlackClock "0:00:14"]

1. d4 {[%clk 0:03:00]}  d5 {[%clk 0:02:59]} 2. c4 {[%clk 0:03:01]}  c6 {[%clk 0:02:58]} 3. Nf3 {[%clk 0:03:00]}  Nf6 {[%clk 0:02:58]} 4. g3 {[%clk 0:02:59]}  e6 {[%clk 0:02:58]} 5. Bg2 {[%clk 0:02:58]}  Nbd7 {[%clk 0:02:58]} 6. O-O {[%clk 0:02:58]}  Be7 {[%clk 0:02:58]} 7. Nbd2 {[%clk 0:02:58]}  O-O {[%clk 0:02:59]} 8. Qc2 {[%clk 0:02:58]}  b6 {[%clk 0:02:59]} 9. e4 {[%clk 0:02:52]}  dxe4 {[%clk 0:02:58]} 10. Nxe4 {[%clk 0:02:53]}  Bb7 {[%clk 0:02:58]} 11. Rd1 {[%clk 0:02:42]}  Nxe4 {[%clk 0:02:55]} 12. Qxe4 {[%clk 0:02:41]}  Nf6 {[%clk 0:02:56]} 13. Qe2 {[%clk 0:02:40]}  Qc7 {[%clk 0:02:55]} 14. Bf4 {[%clk 0:02:34]}  Bd6 {[%clk 0:02:55]} 15. Bxd6 {[%clk 0:02:17]}  Qxd6 {[%clk 0:02:56]} 16. Ne5 {[%clk 0:02:17]}  Qc7 {[%clk 0:02:51]} 17. Rac1 {[%clk 0:02:16]}  c5 {[%clk 0:02:43]} 18. Bxb7 {[%clk 0:02:17]}  Qxb7 {[%clk 0:02:43]} 19. dxc5 {[%clk 0:02:13]}  bxc5 {[%clk 0:02:44]} 20. b3 {[%clk 0:02:09]}  Rad8 {[%clk 0:02:42]} 21. h4 {[%clk 0:02:07]}  Qc7 {[%clk 0:02:32]} 22. Nf3 {[%clk 0:01:58]}  g6 {[%clk 0:02:23]} 23. Qe5 {[%clk 0:01:56]}  Qxe5 {[%clk 0:02:22]} 24. Nxe5 {[%clk 0:01:57]}  Kg7 {[%clk 0:02:16]} 25. Nc6 {[%clk 0:01:50]}  Rc8 {[%clk 0:02:11]} 26. Na5 {[%clk 0:01:37]}  Rfd8 {[%clk 0:02:07]} 27. Nb7 {[%clk 0:01:33]}  Rxd1+ {[%clk 0:02:05]} 28. Rxd1 {[%clk 0:01:34]}  Rc7 {[%clk 0:02:05]} 29. Na5 {[%clk 0:01:29]}  Ne4 {[%clk 0:01:57]} 30. Rd8 {[%clk 0:01:18]}  Nc3 {[%clk 0:01:54]} 31. a3 {[%clk 0:01:16]}  Kf6 {[%clk 0:01:52]} 32. b4 {[%clk 0:01:13]}  Nb1 {[%clk 0:01:44]} 33. Rd3 {[%clk 0:01:12]}  a6 {[%clk 0:01:33]} 34. Kf1 {[%clk 0:01:10]}  e5 {[%clk 0:01:33]} 35. Ke2 {[%clk 0:01:09]}  e4 {[%clk 0:01:33]} 36. Rb3 {[%clk 0:01:09]}  Nxa3 {[%clk 0:01:32]} 37. Rxa3 {[%clk 0:01:08]}  cxb4 {[%clk 0:01:33]} 38. Rb3 {[%clk 0:01:08]}  Rc5 {[%clk 0:01:33]} 39. Nb7 {[%clk 0:01:00]}  Rxc4 {[%clk 0:01:33]} 40. Nd6 {[%clk 0:00:54]}  Rd4 {[%clk 0:01:25]} 41. Nb7 {[%clk 0:00:53]}  Ke5 {[%clk 0:01:18]} 42. Nc5 {[%clk 0:00:50]}  a5 {[%clk 0:01:14]} 43. Rb1 {[%clk 0:00:42]}  Kd5 {[%clk 0:01:14]} 44. Nb3 {[%clk 0:00:40]}  Rc4 {[%clk 0:00:57]} 45. Rd1+ {[%clk 0:00:37]}  Ke5 {[%clk 0:00:58]} 46. Nxa5 {[%clk 0:00:38]}  Rc2+ {[%clk 0:00:57]} 47. Rd2 {[%clk 0:00:38]}  Rc5 {[%clk 0:00:40]} 48. Nb3 {[%clk 0:00:36]}  Rc3 {[%clk 0:00:40]} 49. Rb2 {[%clk 0:00:32]}  Kd5 {[%clk 0:00:40]} 50. Nd2 {[%clk 0:00:31]}  f5 {[%clk 0:00:29]} 51. Rxb4 {[%clk 0:00:30]}  Rc2 {[%clk 0:00:29]} 52. Rb7 {[%clk 0:00:28]}  h6 {[%clk 0:00:28]} 53. Rb6 {[%clk 0:00:27]}  Rc6 {[%clk 0:00:20]} 54. Rxc6 {[%clk 0:00:27]}  Kxc6 {[%clk 0:00:21]} 55. Ke3 {[%clk 0:00:27]}  Kd5 {[%clk 0:00:21]} 56. Nb3 {[%clk 0:00:22]}  g5 {[%clk 0:00:21]} 57. h5 {[%clk 0:00:21]}  Ke5 {[%clk 0:00:20]} 58. Nd2 {[%clk 0:00:18]}  f4+ {[%clk 0:00:20]} 59. Ke2 {[%clk 0:00:17]}  Kf5 {[%clk 0:00:19]} 60. f3 {[%clk 0:00:15]}  exf3+ {[%clk 0:00:12]} 61. Kxf3 {[%clk 0:00:14]}  g4+ {[%clk 0:00:12]} 62. Kf2 {[%clk 0:00:09]}  fxg3+ {[%clk 0:00:11]} 63. Kxg3 {[%clk 0:00:09]}  Kg5 {[%clk 0:00:11]} 64. Ne4+ {[%clk 0:00:05]}  Kxh5 {[%clk 0:00:12]} 65. Nf2 {[%clk 0:00:05]}  Kg5 {[%clk 0:00:13]} 66. Nxg4 {[%clk 0:00:05]}  h5 {[%clk 0:00:13]} 67. Nf2 {[%clk 0:00:06]}  h4+ {[%clk 0:00:14]} 68. Kg2 {[%clk 0:00:06]}  h3+ {[%clk 0:00:14]} 69. Nxh3+ {[%clk 0:00:07]} 1/2-1/2


[Site "https://www.chess.com"]

[Event "Titled Tuesday Blitz April 19 Late 2022"]
[White "Mekhitarian, Krikor Sevag"]
[Black "Hamley, Ryan"]
[WhiteFideId "2107660"]
[BlackFideId "30959497"]
[WhiteElo "2706"]
[BlackElo "2527"]
[Result "1-0"]
[Round "04"]
[TimeControl "180+1"]
[Date "2022.04.19"]
[WhiteClock "0:00:04"]
[BlackClock "0:00:02"]

1. Nf3 {[%clk 0:03:00]}  g6 {[%clk 0:02:57]} 2. c4 {[%clk 0:02:57]}  Bg7 {[%clk 0:02:56]} 3. Nc3 {[%clk 0:02:57]}  e5 {[%clk 0:02:55]} 4. g3 {[%clk 0:02:48]}  Ne7 {[%clk 0:02:47]} 5. Bg2 {[%clk 0:02:47]}  O-O {[%clk 0:02:47]} 6. O-O {[%clk 0:02:47]}  c6 {[%clk 0:02:47]} 7. d4 {[%clk 0:02:48]}  d6 {[%clk 0:02:42]} 8. h3 {[%clk 0:02:47]}  Nd7 {[%clk 0:02:41]} 9. e4 {[%clk 0:02:47]}  Qc7 {[%clk 0:02:40]} 10. Re1 {[%clk 0:02:47]}  a5 {[%clk 0:02:40]} 11. Be3 {[%clk 0:02:43]}  h6 {[%clk 0:02:38]} 12. Qd2 {[%clk 0:02:42]}  Kh7 {[%clk 0:02:38]} 13. Rad1 {[%clk 0:02:42]}  f5 {[%clk 0:02:30]} 14. dxe5 {[%clk 0:02:36]}  dxe5 {[%clk 0:02:28]} 15. Qc2 {[%clk 0:02:15]}  f4 {[%clk 0:02:24]} 16. Bc1 {[%clk 0:02:14]}  Nc5 {[%clk 0:02:20]} 17. b3 {[%clk 0:02:10]}  fxg3 {[%clk 0:01:46]} 18. fxg3 {[%clk 0:02:10]}  Bxh3 {[%clk 0:01:44]} 19. Bxh3 {[%clk 0:02:08]}  Rxf3 {[%clk 0:01:44]} 20. Kg2 {[%clk 0:02:08]}  Raf8 {[%clk 0:01:43]} 21. Bg4 {[%clk 0:02:00]}  R3f6 {[%clk 0:01:32]} 22. Be3 {[%clk 0:01:59]}  Ne6 {[%clk 0:01:26]} 23. Bxe6 {[%clk 0:01:58]}  Rxe6 {[%clk 0:01:26]} 24. Qd2 {[%clk 0:01:59]}  g5 {[%clk 0:01:14]} 25. Qd7 {[%clk 0:01:50]}  Qc8 {[%clk 0:00:56]} 26. Na4 {[%clk 0:01:17]}  Ng6 {[%clk 0:00:39]} 27. Nb6 {[%clk 0:01:04]}  Qe8 {[%clk 0:00:34]} 28. Bc5 {[%clk 0:00:59]}  Rf7 {[%clk 0:00:32]} 29. Qxe8 {[%clk 0:00:59]}  Rxe8 {[%clk 0:00:32]} 30. Rd3 {[%clk 0:00:47]}  Bf8 {[%clk 0:00:30]} 31. Nd7 {[%clk 0:00:37]}  Bxc5 {[%clk 0:00:28]} 32. Nxc5 {[%clk 0:00:38]}  Nf8 {[%clk 0:00:28]} 33. Red1 {[%clk 0:00:34]}  Ne6 {[%clk 0:00:22]} 34. Nxe6 {[%clk 0:00:20]}  Rxe6 {[%clk 0:00:22]} 35. Rd6 {[%clk 0:00:17]}  Rxd6 {[%clk 0:00:17]} 36. Rxd6 {[%clk 0:00:18]}  Kg7 {[%clk 0:00:18]} 37. Re6 {[%clk 0:00:17]}  Rd7 {[%clk 0:00:17]} 38. Rxe5 {[%clk 0:00:17]}  Rd2+ {[%clk 0:00:16]} 39. Kf3 {[%clk 0:00:18]}  Rxa2 {[%clk 0:00:16]} 40. Re7+ {[%clk 0:00:18]}  Kf6 {[%clk 0:00:16]} 41. Rxb7 {[%clk 0:00:19]}  Ra3 {[%clk 0:00:13]} 42. Kg4 {[%clk 0:00:16]}  a4 {[%clk 0:00:10]} 43. bxa4 {[%clk 0:00:11]}  Rxa4 {[%clk 0:00:11]} 44. Rh7 {[%clk 0:00:11]}  Kg6 {[%clk 0:00:10]} 45. Re7 {[%clk 0:00:11]}  Rxc4 {[%clk 0:00:10]} 46. Re6+ {[%clk 0:00:10]}  Kg7 {[%clk 0:00:11]} 47. Kf5 {[%clk 0:00:10]}  Rc1 {[%clk 0:00:07]} 48. Re7+ {[%clk 0:00:09]}  Kf8 {[%clk 0:00:07]} 49. Rh7 {[%clk 0:00:09]}  Rf1+ {[%clk 0:00:06]} 50. Ke6 {[%clk 0:00:10]}  Re1 {[%clk 0:00:04]} 51. e5 {[%clk 0:00:10]}  Re3 {[%clk 0:00:04]} 52. g4 {[%clk 0:00:09]}  c5 {[%clk 0:00:04]} 53. Kf6 {[%clk 0:00:02]}  Rf3+ {[%clk 0:00:03]} 54. Kg6 {[%clk 0:00:02]}  c4 {[%clk 0:00:03]} 55. Rc7 {[%clk 0:00:02]}  c3 {[%clk 0:00:04]} 56. e6 {[%clk 0:00:02]}  Re3 {[%clk 0:00:01]} 57. Kf6 {[%clk 0:00:02]}  Rf3+ {[%clk 0:00:02]} 58. Ke5 {[%clk 0:00:03]}  Re3+ {[%clk 0:00:02]} 59. Kd5 {[%clk 0:00:04]} 1-0


[Site "https://www.chess.com"]